fUST/lending_fUST_20251122
["ID","MTS","AMOUNT","RATE_DAILY","PERIOD"]
[394618960,1763784638804,-500.0,0.00012012,2]
[394618961,1763784638813,-500.0,0.00012012,2]
[394618962,1763784638822,-500.0,0.00012012,2]
[394618963,1763784638831,-500.0,0.00012012,2]
[394618964,1763784638841,-500.0,0.00012012,2]
[394618965,1763784638850,-500.0,0.00012012,2]
[394618966,1763784638860,-500.0,0.00012012,2]
[394618967,1763784638870,-500.0,0.00012012,2]
[394618968,1763784638880,-500.0,0.00012012,2]
[394618969,1763784638890,-300.00000004,0.00012012,2]
[394618970,1763784638899,-500.0,0.00012012,2]
[394618971,1763784638910,-500.0,0.00012012,2]
[394618972,1763784638919,-500.0,0.00012012,2]
[394618973,1763784638929,-500.0,0.00012012,2]
[394618974,1763784638939,-500.0,0.00012012,2]
[394618975,1763784638949,-500.0,0.00012012,2]
[394618976,1763784638959,-500.0,0.00012012,2]
[394618977,1763784638969,-500.0,0.00012012,2]
[394618978,1763784638979,-500.0,0.00012012,2]
[394618979,1763784638988,-500.0,0.00012012,2]
[394618980,1763784638997,-632.08710695,0.00012012,2]
[394618981,1763784639007,-500.0,0.00012012,2]
[394618982,1763784639016,-500.0,0.00012012,2]
[394618983,1763784639026,-500.0,0.00012012,2]
[394618984,1763784639035,-500.0,0.00012012,2]
[394618985,1763784639044,-500.0,0.00012012,2]
[394618986,1763784639054,-500.0,0.00012012,2]
[394618987,1763784639063,-500.0,0.00012012,2]
[394618988,1763784639073,-500.0,0.00012012,2]
[394618989,1763784639082,-500.0,0.00012012,2]
[394618990,1763784639092,-500.0,0.00012012,2]
[394618991,1763784639102,-644.0,0.00012013,2]
[394618992,1763784639112,-151.0,0.00012014,2]
[394618993,1763784639122,-500.0,0.00012018,2]
[394618994,1763784639131,-38821.50633085,0.00012019,2]
[394619026,1763784644180,-150.0,0.00012012,2]
[394619029,1763784644190,-3083.12680255,0.00012019,2]
[394619069,1763784644866,-5030.29589834,0.00012019,2]
[394619079,1763784646726,-20177.80515479,0.00012019,2]
[394619085,1763785152348,191.294073,0.0002,30]
[394619088,1763785350230,170.0,0.00018786,120]
[394619089,1763785495507,671.9605523,0.00025278,120]
[394619092,1763785610945,5000.0,0.00014,10]
[394619093,1763785619000,5000.0,0.00014,10]
[394619094,1763785634161,4634.78009935,0.00014,10]
[394619095,1763785642662,5000.0,0.00014,10]
[394619096,1763785751605,181.72937,0.0002,30]
[394619109,1763785831597,-150.0,8.466e-05,2]
[394619111,1763785831607,-150.0,8.552e-05,2]
[394619113,1763785831616,-179.00111761,9.038e-05,2]
[394619115,1763785831625,-177.0,0.00010552,2]
[394619117,1763785831634,-500.0,0.00011889,2]
[394619119,1763785831643,-318.28023317,0.00011889,2]
[394619305,1763785838305,-500.0,0.00011888,2]
[394619306,1763785838315,-500.0,0.00011888,2]
[394619307,1763785838324,-73.38446062,0.00011888,2]
[394619308,1763785838336,-129.39971493,0.00011888,2]
[394619309,1763785838345,-405.81565204,0.00011888,2]
[394619310,1763785838355,-500.0,0.00011888,2]
[394619311,1763785838365,-500.0,0.00011888,2]
[394619312,1763785838374,-500.0,0.00011888,2]
[394619313,1763785838384,-500.0,0.00011888,2]
[394619314,1763785838394,-500.0,0.00011888,2]
[394619315,1763785838403,-500.0,0.00011888,2]
[394619316,1763785838412,-500.0,0.00011888,2]
[394619317,1763785838422,-500.0,0.00011888,2]
[394619318,1763785838431,-500.0,0.00011888,2]
[394619319,1763785838440,-613.20871069,0.00011888,2]
[394619320,1763785838450,-500.0,0.00011888,2]
[394619321,1763785838459,-457.19419899,0.00011888,2]
[394619322,1763785838490,-42.80580101,0.00011888,2]
[394619323,1763785838500,-500.0,0.00011888,2]
[394619324,1763785838510,-500.0,0.00011888,2]
[394619325,1763785838519,-500.0,0.00011888,2]
[394619326,1763785838529,-500.0,0.00011888,2]
[394619327,1763785838539,-500.0,0.00011888,2]
[394619328,1763785838548,-500.0,0.00011888,2]
[394619329,1763785838558,-381.4247175,0.00011888,2]
[394619330,1763785838567,-151.0,0.000119,2]
[394619331,1763785838577,-151.0,0.000119,2]
[394619332,1763785838586,-301.0100307,0.000119,2]
[394619333,1763785838595,-1000.0,0.00011905,2]
[394619334,1763785838605,-1000.0,0.00011905,2]
[394619335,1763785838615,-1000.0,0.00011905,2]
[394619336,1763785838625,-1000.0,0.00011905,2]
[394619337,1763785838634,-165.05308047,0.00011905,2]
[394619338,1763785838643,-1000.0,0.00011905,2]
[394619339,1763785838653,-1000.0,0.00011905,2]
[394619340,1763785838662,-1000.0,0.00011905,2]
[394619341,1763785838671,-1000.0,0.00011905,2]
[394619342,1763785838681,-2008.45993855,0.00011905,2]
[394619343,1763785838690,-1000.0,0.00011905,2]
[394619344,1763785838700,-1000.0,0.00011905,2]
[394619345,1763785838709,-1000.0,0.00011905,2]
[394619346,1763785838719,-1005.55985907,0.00011905,2]
[394619347,1763785838729,-6686.51857567,0.00011905,2]
[394619348,1763785838738,-151.0,0.00011913,2]
[394619349,1763785838747,-151.0,0.00011913,2]
[394619350,1763785838757,-500.0,0.00011973,2]
[394619351,1763785838767,-426.27374724,0.00011973,2]
[394619352,1763785838776,-447.50554408,0.00011973,2]
[394619353,1763785838785,-500.77345059,0.00011973,2]
[394619354,1763785838794,-505.61938978,0.00011973,2]
[394619355,1763785838805,-501.20522775,0.00011973,2]
[394619356,1763785838815,-500.3771396,0.00011973,2]
[394619357,1763785838824,-505.60228621,0.00011973,2]
[394619358,1763785838833,-445.34619885,0.00011973,2]
[394619359,1763785838845,-55.47452645,0.00011973,2]
[394619360,1763785838854,-515.41517123,0.00011973,2]
[394619361,1763785838863,-500.0,0.00011973,2]
[394619362,1763785838872,-500.51077176,0.00011973,2]
[394619363,1763785838882,-5565.53954811,0.00012,2]
[394619364,1763785838891,-334.8484511,0.00012017,2]
[394619365,1763785838900,-1439.2,0.00012329,2]
[394619366,1763785838909,-1199.34,0.00012329,2]
[394619367,1763785838919,-999.45,0.00012329,2]
[394619368,1763785838928,-832.87,0.00012329,2]
[394619369,1763785838938,-694.06,0.00012329,2]
[394619370,1763785838947,-578.38,0.00012329,2]
[394619371,1763785838957,-481.99,0.00012329,2]
[394619372,1763785838966,-401.65,0.00012329,2]
[394619373,1763785838979,-334.71,0.00012329,2]
[394619374,1763785838988,-278.93,0.00012329,2]
[394619375,1763785838998,-232.44,0.00012329,2]
[394619376,1763785839007,-193.7,0.00012329,2]
[394619377,1763785839019,-161.42,0.00012329,2]
[394619378,1763785839030,-807.1,0.00012329,2]
[394619379,1763785839039,-6933.91976297,0.00012453,2]
[394619380,1763785839048,-8386.95293309,0.000125,2]
[394619381,1763785839060,-504.07895691,0.00012521,2]
[394619382,1763785839070,-1000.0,0.00012521,2]
[394619383,1763785839079,-204.0,0.00012552,2]
[394619384,1763785839089,-202.0,0.000128,3]
[394619385,1763785839099,-155.330326,0.000129,2]
[394619386,1763785839108,-4700.25053246,0.000129,2]
[394619387,1763785839117,-6751.27727518,0.00012959,2]
[394619402,1763785840162,-21242.90161947,0.0001177,2]
[394619403,1763785840172,-21877.04981186,0.0001179,2]
[394619404,1763785840183,-42613.54921853,0.0001179,2]
[394619406,1763785840194,-3660.38859975,0.0001179,2]
[394619418,1763785845423,-4602.41534979,0.0001179,2]
[394619423,1763785845761,-1816.21647409,0.0001179,2]
[394619424,1763786352255,172.642901,0.0002,30]
[394619425,1763786952303,164.010756,0.0002,30]
[394619426,1763786960099,-168.012686,0.00010189,2]
[394619427,1763786960119,-150.0,0.00010319,2]
[394619428,1763786960138,-200.35,0.00010501,2]
[394619429,1763786960156,-170.4076057,0.0001081,2]
[394619430,1763786995275,223.5281148,9.038e-05,2]
[394619432,1763787031851,-300.0,0.00011449,2]
[394619433,1763787031860,-300.0,0.00011565,2]
[394619434,1763787031869,-300.0,0.00011682,2]
[394619435,1763787031879,-406.1418717,0.00011683,2]
[394619556,1763787037900,-482.24165179,0.00011566,2]
[394619578,1763787045302,-693.25943983,0.0001145,2]
[394619579,1763787045312,-693.25943983,0.00011566,2]
[394619580,1763787045323,-557.38552285,0.00011682,2]
[394619581,1763787045333,-500.0,0.00011682,2]
[394619582,1763787045343,-268.66563816,0.00011682,2]
[394619583,1763787045352,-500.0,0.00011682,2]
[394619585,1763787045362,-500.0,0.00011682,2]
[394619586,1763787045372,-500.0,0.00011682,2]
[394619587,1763787045381,-500.0,0.00011682,2]
[394619588,1763787045391,-372.34251456,0.00011682,2]
[394619589,1763787045402,-500.0,0.00011682,2]
[394619590,1763787045412,-84.70315091,0.00011682,2]
[394619597,1763787046021,-415.29684909,0.00011682,2]
[394619598,1763787046031,-500.0,0.00011682,2]
[394619599,1763787046041,-262.77756789,0.00011682,2]
[394619639,1763787564869,155.810218,0.0002,30]
[394619640,1763787620975,620.00052913,0.00025026,120]
[394619641,1763787634570,5000.0,0.00014,10]
[394619642,1763787642639,482.24165179,0.00014,10]
[394619643,1763787658076,5000.0,0.00014,10]
[394619644,1763787681467,5000.0,0.00014,10]
[394619646,1763788152128,155.810218,0.0002,30]
[394619909,1763788246178,-226.11,0.00010396,2]
[394619910,1763788246188,-150.0,0.00010449,2]
[394619911,1763788246197,-226.11,0.00010501,2]
[394619912,1763788246206,-300.0,0.00011572,2]
[394619913,1763788246215,-500.0,0.00011572,2]
[394619914,1763788246224,-100.73,0.00011572,2]
[394619916,1763788268619,290.3537017,0.00025278,120]
[394619927,1763788456298,5000.0,0.00014,10]
[394619929,1763788751810,155.810218,0.0002,30]
[394619930,1763788825593,245.0,0.0002,30]
[394619933,1763789352496,155.810219,0.0002,30]
[394619980,1763789432374,-321.0,0.00010259,2]
[394620089,1763789438226,-62.4,0.00010259,2]
[394620091,1763789438239,-150.0,0.00010311,2]
[394620093,1763789438252,-383.4,0.00010363,2]
[394620094,1763789438264,-2201.38017953,0.0001135,2]
[394620095,1763789438671,-5437.54794521,0.0001135,2]
[394620096,1763789438686,-5311.88638983,0.0001135,2]
[394620113,1763789444578,-561.59321361,0.00011236,2]
[394620116,1763789445383,-300.0,0.00011236,2]
[394620148,1763789446529,-3329.09203357,0.00011236,2]
[394620149,1763789531544,18143.07,0.00015,30]
[394620151,1763790319562,196.437,0.00025279,120]
[394620153,1763790404812,5000.0,0.00014,10]
[394620154,1763790413584,5000.0,0.00014,10]
[394620155,1763790429620,5000.0,0.00014,10]
[394620156,1763790437457,4766.6,0.00014,10]
[394620178,1763790633286,-150.0,9.937e-05,2]
[394620179,1763790633296,-150.0,0.00010037,2]
[394620180,1763790633305,-150.0,0.00010138,2]
[394620181,1763790633314,-158.28,0.00010501,2]
[394620182,1763790633323,-266.35818407,0.00010704,2]
[394620183,1763790633334,-191.14908768,0.00010704,2]
[394620184,1763790633344,-119.06770889,0.00011023,2]
[394620186,1763790638429,-31.93229111,0.00011023,2]
[394620187,1763790638438,-390.16986599,0.00011129,2]
[394620188,1763790638449,-500.0,0.00011129,2]
[394620189,1763790638459,-500.0,0.00011129,2]
[394620190,1763790638468,-500.0,0.00011129,2]
[394620191,1763790638478,-500.0,0.00011129,2]
[394620192,1763790638487,-606.49662991,0.00011129,2]
[394620193,1763790638496,-222.40121299,0.00011129,2]
[394620194,1763790638508,-277.59878701,0.00011129,2]
[394620195,1763790638518,-243.77274953,0.00011129,2]
[394620196,1763790638535,-256.22725047,0.00011129,2]
[394620197,1763790638544,-500.0,0.00011129,2]
[394620198,1763790638554,-25.61406727,0.00011129,2]
[394620199,1763790638567,-474.38593273,0.00011129,2]
[394620200,1763790638577,-163.85231596,0.00011129,2]
[394620201,1763790638586,-478.21434395,0.00011129,2]
[394620202,1763790638598,-21.78565605,0.00011129,2]
[394620203,1763790638608,-500.0,0.00011129,2]
[394620204,1763790638619,-159.04222008,0.00011129,2]
[394620213,1763790697432,20000.0,0.00025278,120]
[394620214,1763790839061,5000.0,0.00014,10]
[394620215,1763790861438,5000.0,0.00014,10]
[394620217,1763791368517,500.0,0.00025278,120]
[394620227,1763791463809,5000.0,0.00014,10]
[394620257,1763791831597,-2316.23767034,8.375e-05,2]
[394620259,1763791831608,-258.22366975,8.375e-05,2]
[394620265,1763791831656,-257.88917531,8.375e-05,2]
[394620267,1763791831666,-113.88211862,8.375e-05,2]
[394620268,1763791831675,-150.0,8.475e-05,2]
[394620270,1763791831684,-150.0,8.604e-05,2]
[394620272,1763791831694,-223.5281148,8.691e-05,2]
[394620274,1763791831704,-170.9,0.00010501,2]
[394620276,1763791831713,-177.0,0.00010604,2]
[394620278,1763791831722,-300.0,0.00011024,2]
[394620279,1763791831731,-500.0,0.00011025,2]
[394620281,1763791831739,-329.47071204,0.00011025,2]
[394620283,1763791831748,-500.0,0.00011025,2]
[394620285,1763791831757,-500.0,0.00011025,2]
[394620287,1763791831766,-500.0,0.00011025,2]
[394620288,1763791831775,-500.0,0.00011025,2]
[394620290,1763791831784,-500.0,0.00011025,2]
[394620292,1763791831793,-500.0,0.00011025,2]
[394620294,1763791831803,-500.0,0.00011025,2]
[394620296,1763791831812,-500.0,0.00011025,2]
[394620298,1763791831820,-500.0,0.00011025,2]
[394620299,1763791831829,-500.0,0.00011025,2]
[394620301,1763791831838,-500.0,0.00011025,2]
[394620303,1763791831847,-210.99038481,0.00011025,2]
[394620305,1763791831856,-500.0,0.00011025,2]
[394620307,1763791831865,-500.0,0.00011025,2]
[394620308,1763791831874,-500.0,0.00011025,2]
[394620310,1763791831883,-500.0,0.00011025,2]
[394620311,1763791831891,-500.0,0.00011025,2]
[394620313,1763791831900,-500.0,0.00011025,2]
[394620315,1763791831909,-500.0,0.00011025,2]
[394620317,1763791831919,-500.0,0.00011025,2]
[394620319,1763791831928,-500.0,0.00011025,2]
[394620320,1763791831936,-500.0,0.00011025,2]
[394620322,1763791831945,-500.0,0.00011025,2]
[394620323,1763791831955,-500.0,0.00011025,2]
[394620324,1763791831964,-500.0,0.00011025,2]
[394620325,1763791831974,-500.0,0.00011025,2]
[394620326,1763791831985,-500.0,0.00011025,2]
[394620327,1763791831994,-500.0,0.00011025,2]
[394620328,1763791832004,-6.39247241,0.00011025,2]
[394620331,1763791832018,-493.60752759,0.00011025,2]
[394620332,1763791832027,-102.50940984,0.00011025,2]
[394620339,1763791832100,-273.1189062,0.00011024,2]
[394620341,1763791832115,-500.0,0.00011024,2]
[394620342,1763791832124,-397.49059016,0.00011025,2]
[394620344,1763791832134,-162.76050364,0.00011025,2]
[394620480,1763791839920,-500.0,0.00011024,2]
[394620482,1763791839930,-500.0,0.00011024,2]
[394620484,1763791839939,-500.0,0.00011024,2]
[394620486,1763791839949,-500.0,0.00011024,2]
[394620488,1763791839960,-189.36142334,0.00011024,2]
[394620490,1763791839969,-205.698485,0.00011025,2]
[394620492,1763791839982,-205.698485,0.00011025,2]
[394620494,1763791839992,-205.698485,0.00011025,2]
[394620496,1763791840000,-205.698485,0.00011025,2]
[394620498,1763791840009,-205.698485,0.00011025,2]
[394620500,1763791840020,-205.698485,0.00011025,2]
[394620502,1763791840029,-205.698485,0.00011025,2]
[394620504,1763791840039,-205.698485,0.00011025,2]
[394620506,1763791840048,-205.698485,0.00011025,2]
[394620508,1763791840059,-205.698485,0.00011025,2]
[394620510,1763791840068,-205.698485,0.00011025,2]
[394620512,1763791840077,-50246.64129663,0.00011026,2]
[394621118,1763793037832,-170.4076057,9.704e-05,2]
[394621120,1763793037841,-150.0,9.927e-05,2]
[394621122,1763793037850,-170.4076057,0.00010102,2]
[394621124,1763793037860,-257.88917531,0.00010598,2]
[394621125,1763793037869,-416.36,0.00010703,2]
[394621127,1763793037879,-236.0,0.00010915,2]
[394621129,1763793037893,-500.0,0.00010915,2]
[394621131,1763793037903,-22.57857396,0.00010915,2]
[394621136,1763793037950,-359.97442237,0.00010915,2]
[394621138,1763793037959,-500.0,0.00010915,2]
[394621139,1763793037967,-500.0,0.00010915,2]
[394621141,1763793037976,-500.0,0.00010915,2]
[394621143,1763793037985,-500.0,0.00010915,2]
[394621145,1763793037995,-2319.37664943,0.00010915,2]
[394621147,1763793038004,-500.0,0.00010915,2]
[394621148,1763793038013,-500.0,0.00010915,2]
[394621150,1763793038022,-500.0,0.00010915,2]
[394621152,1763793038031,-500.0,0.00010915,2]
[394621153,1763793038040,-2319.37664943,0.00010915,2]
[394621155,1763793038050,-500.0,0.00010915,2]
[394621157,1763793038059,-413.81460252,0.00010915,2]
[394621159,1763793038069,-500.0,0.00010915,2]
[394621161,1763793038079,-2319.37664943,0.00010915,2]
[394621163,1763793038088,-500.0,0.00010915,2]
[394621164,1763793038098,-2319.37664943,0.00010915,2]
[394621166,1763793038108,-500.0,0.00010915,2]
[394621168,1763793038118,-2319.37664943,0.00010915,2]
[394621170,1763793038127,-500.0,0.00010915,2]
[394621172,1763793038138,-500.0,0.00010915,2]
[394621174,1763793038146,-2319.37664943,0.00010915,2]
[394621175,1763793038155,-500.0,0.00010915,2]
[394621177,1763793038164,-2319.37664943,0.00010915,2]
[394621179,1763793038174,-500.0,0.00010915,2]
[394621181,1763793038183,-2319.37664943,0.00010915,2]
[394621182,1763793038192,-500.0,0.00010915,2]
[394621184,1763793038201,-324.6145852,0.00010915,2]
[394621186,1763793038211,-2319.37664943,0.00010915,2]
[394621188,1763793038220,-2319.37664943,0.00010915,2]
[394621190,1763793038229,-500.0,0.00010915,2]
[394621191,1763793038238,-2319.37664943,0.00010915,2]
[394621193,1763793038247,-500.0,0.00010915,2]
[394621195,1763793038257,-2319.37664943,0.00010915,2]
[394621197,1763793038265,-500.0,0.00010915,2]
[394621198,1763793038274,-2319.37664943,0.00010915,2]
[394621200,1763793038283,-2319.37664943,0.00010915,2]
[394621202,1763793038293,-2319.37664943,0.00010915,2]
[394621204,1763793038302,-2319.37664943,0.00010915,2]
[394621205,1763793038311,-2319.37664943,0.00010915,2]
[394621207,1763793038321,-2319.37664943,0.00010915,2]
[394621209,1763793038330,-2319.37664943,0.00010915,2]
[394621211,1763793038340,-2319.37664943,0.00010915,2]
[394621213,1763793038353,-26651.1586822,0.00010921,2]
[394621215,1763793038364,-990.29015155,0.00010921,2]
[394621219,1763793038398,-2319.37664943,0.00010915,2]
[394621221,1763793038407,-223.9580351,0.00010921,2]
[394621632,1763793045902,-625.78505773,0.00010915,2]
[394621633,1763793046214,-406.97083384,0.00010915,2]
[394621763,1763794232993,-29689.40135806,9.899e-05,2]
[394621764,1763794233002,-500.0,9.998e-05,2]
[394621765,1763794233012,-248.33878144,9.998e-05,2]
[394621766,1763794233021,-500.0,9.998e-05,2]
[394621767,1763794233031,-500.0,9.998e-05,2]
[394621768,1763794233041,-500.0,9.998e-05,2]
[394621769,1763794233051,-500.0,9.998e-05,2]
[394621770,1763794233061,-500.0,9.998e-05,2]
[394621771,1763794233071,-50000.0,0.0001,2]
[394621772,1763794233082,-150.0,0.00010089,2]
[394621773,1763794233092,-137832.51179487,0.00010705,2]
[394624589,1763795227481,50000.0,0.000111,3]
[394624590,1763795259836,50000.0,0.000111,3]
[394624591,1763795410319,50000.0,0.000111,3]
[394624629,1763795432340,-150.0,9.365e-05,2]
[394624631,1763795432349,-150.0,9.569e-05,2]
[394624633,1763795432358,-500.54565614,9.873e-05,2]
[394624635,1763795432367,-500.0,9.973e-05,2]
[394624638,1763795432376,-500.0,9.998e-05,2]
[394624640,1763795432385,-500.0,9.998e-05,2]
[394624642,1763795432394,-500.0,9.998e-05,2]
[394624644,1763795432404,-500.0,9.998e-05,2]
[394624646,1763795432413,-273.837147,9.998e-05,2]
[394624648,1763795432423,-212.64606695,9.998e-05,2]
[394624650,1763795432431,-500.0,9.998e-05,2]
[394624652,1763795432441,-2060.14580224,9.998e-05,2]
[394624654,1763795432450,-500.0,9.998e-05,2]
[394624656,1763795432460,-500.0,9.998e-05,2]
[394624658,1763795432469,-2060.14580224,9.998e-05,2]
[394624660,1763795432477,-500.0,9.998e-05,2]
[394624662,1763795432486,-2060.14580224,9.998e-05,2]
[394624664,1763795432495,-592.74677991,9.998e-05,2]
[394624666,1763795432504,-2060.14580224,9.998e-05,2]
[394624668,1763795432513,-2060.14580224,9.998e-05,2]
[394624669,1763795432522,-2060.14580224,9.998e-05,2]
[394624671,1763795432531,-2060.14580224,9.998e-05,2]
[394624673,1763795432541,-2060.14580224,9.998e-05,2]
[394624674,1763795432550,-2060.14580224,9.998e-05,2]
[394624675,1763795432559,-2060.14580224,9.998e-05,2]
[394624676,1763795432569,-2060.14580224,9.998e-05,2]
[394624677,1763795432578,-2060.14580224,9.998e-05,2]
[394624678,1763795432587,-2060.14580224,9.998e-05,2]
[394624679,1763795432597,-2060.14580224,9.998e-05,2]
[394624680,1763795432607,-2060.14580224,9.998e-05,2]
[394624681,1763795432617,-2060.14580224,9.998e-05,2]
[394624682,1763795432626,-2060.14580224,9.998e-05,2]
[394624683,1763795432636,-2060.14580224,9.998e-05,2]
[394624684,1763795432645,-2060.14580224,9.998e-05,2]
[394624685,1763795432654,-2060.14580224,9.998e-05,2]
[394624686,1763795432664,-2060.14580224,9.998e-05,2]
[394624687,1763795432672,-2060.14580224,9.998e-05,2]
[394624688,1763795432681,-917.342384,9.998e-05,2]
[394624693,1763795438304,-151.0,9.998e-05,2]
[394624695,1763795438314,-151.0,9.998e-05,2]
[394624697,1763795438324,-151.0,9.998e-05,2]
[394624699,1763795438334,-151.0,9.998e-05,2]
[394624701,1763795438343,-151.0,9.998e-05,2]
[394624703,1763795438353,-151.0,9.998e-05,2]
[394624705,1763795438363,-151.0,9.998e-05,2]
[394624707,1763795438373,-1142.80341824,9.998e-05,2]
[394624709,1763795438382,-2060.14580224,9.998e-05,2]
[394624711,1763795438392,-2060.14580224,9.998e-05,2]
[394624713,1763795438401,-2060.14580224,9.998e-05,2]
[394624715,1763795438410,-2060.14580224,9.998e-05,2]
[394624717,1763795438419,-2060.14580224,9.998e-05,2]
[394624719,1763795438429,-2060.14580224,9.998e-05,2]
[394624721,1763795438439,-2060.14580224,9.998e-05,2]
[394624723,1763795438449,-2060.14580224,9.998e-05,2]
[394624725,1763795438458,-2060.14580224,9.998e-05,2]
[394624727,1763795438467,-2052.78813866,9.998e-05,2]
[394624729,1763795438476,-2052.78813866,9.998e-05,2]
[394624731,1763795438486,-2052.78813866,9.998e-05,2]
[394624733,1763795438495,-2052.78813866,9.998e-05,2]
[394624735,1763795438505,-2052.78813866,9.998e-05,2]
[394624737,1763795438514,-2052.78813866,9.998e-05,2]
[394624739,1763795438523,-2052.78813866,9.998e-05,2]
[394624740,1763795438532,-2052.78813866,9.998e-05,2]
[394624742,1763795438542,-2052.78813866,9.998e-05,2]
[394624744,1763795438551,-2052.78813866,9.998e-05,2]
[394624746,1763795438560,-2052.78813866,9.998e-05,2]
[394624748,1763795438569,-2052.78813866,9.998e-05,2]
[394624750,1763795438579,-2052.78813866,9.998e-05,2]
[394624752,1763795438588,-2052.78813866,9.998e-05,2]
[394624754,1763795438597,-2052.78813866,9.998e-05,2]
[394624756,1763795438607,-2052.78813866,9.998e-05,2]
[394624758,1763795438616,-2052.78813866,9.998e-05,2]
[394624760,1763795438625,-2052.78813866,9.998e-05,2]
[394624762,1763795438635,-2052.78813866,9.998e-05,2]
[394624764,1763795438643,-2052.78813866,9.998e-05,2]
[394624766,1763795438653,-2052.78813866,9.998e-05,2]
[394624768,1763795438662,-2011.73237589,9.998e-05,2]
[394624770,1763795438671,-2011.73237589,9.998e-05,2]
[394624772,1763795438679,-2011.73237589,9.998e-05,2]
[394624774,1763795438690,-2011.73237589,9.998e-05,2]
[394624775,1763795438699,-2011.73237589,9.998e-05,2]
[394624777,1763795438708,-2011.73237589,9.998e-05,2]
[394624779,1763795438717,-2011.73237589,9.998e-05,2]
[394624781,1763795438727,-2011.73237589,9.998e-05,2]
[394624783,1763795438736,-2011.73237589,9.998e-05,2]
[394624785,1763795438745,-2011.73237589,9.998e-05,2]
[394624787,1763795438755,-2011.73237589,9.998e-05,2]
[394624789,1763795438764,-2011.73237589,9.998e-05,2]
[394624791,1763795438773,-2011.73237589,9.998e-05,2]
[394624793,1763795438783,-2011.73237589,9.998e-05,2]
[394624795,1763795438792,-2011.73237589,9.998e-05,2]
[394624797,1763795438801,-2011.73237589,9.998e-05,2]
[394624799,1763795438811,-2011.73237589,9.998e-05,2]
[394624801,1763795438820,-3911.701842,9.998e-05,2]
[394624803,1763795438829,-3911.701842,9.998e-05,2]
[394624805,1763795438839,-3911.701842,9.998e-05,2]
[394624807,1763795438849,-3911.701842,9.998e-05,2]
[394624809,1763795438858,-3911.701842,9.998e-05,2]
[394624811,1763795438870,-3911.701842,9.998e-05,2]
[394624813,1763795438879,-3911.701842,9.998e-05,2]
[394624815,1763795438888,-1000.0,0.00010521,2]
[394624817,1763795438898,-1000.18671531,0.00010704,2]
[394624819,1763795438907,-185.41784891,0.00010705,2]
[394624821,1763795438916,-347.94698449,0.00010959,2]
[394624823,1763795438925,-1500.0,0.00011068,2]
[394624825,1763795438934,-332.0,0.000111,2]
[394624827,1763795438944,-300.0,0.000113,2]
[394624829,1763795438953,-3820.96690364,0.00011499,2]
[394624831,1763795438962,-153.07017501,0.000115,2]
[394624833,1763795438972,-177.0,0.00011569,2]
[394624835,1763795438981,-500.0,0.00011616,2]
[394624837,1763795438990,-336.82422484,0.00011703,2]
[394624839,1763795439002,-301.28192516,0.00011703,2]
[394624841,1763795439011,-3820.96690364,0.00011877,2]
[394624843,1763795439020,-150.115,0.00012109,2]
[394624845,1763795439030,-150.0,0.00012109,2]
[394624847,1763795439039,-3820.96690364,0.00012255,2]
[394624849,1763795439049,-7206.26,0.00012329,2]
[394624850,1763795439059,-6005.22,0.00012329,2]
[394624852,1763795439068,-5004.35,0.00012329,2]
[394624854,1763795439078,-4170.29,0.00012329,2]
[394624856,1763795439094,-3475.24,0.00012329,2]
[394624859,1763795439104,-2896.03,0.00012329,2]
[394624860,1763795439114,-2413.36,0.00012329,2]
[394624862,1763795439123,-2011.13,0.00012329,2]
[394624864,1763795439132,-1675.95,0.00012329,2]
[394624866,1763795439141,-1396.62,0.00012329,2]
[394624868,1763795439151,-1163.85,0.00012329,2]
[394624870,1763795439160,-969.88,0.00012329,2]
[394624872,1763795439173,-808.23,0.00012329,2]
[394624874,1763795439182,-673.52,0.00012329,2]